Workbook

Sheet city_select
C2: =jigyosha!C19 -> 名古屋市 | D2: 愛知県 | F2: 名古屋市 | G2: 愛知県 | I2: 一宮市 | J2: 愛知県 | L2: 多治見市 | M2: 岐阜県 | O2: 尾張旭市 | P2: 愛知県
B3: 均等割 | C3: 3300 | D3: 2000 | F3: =ROUNDDOWN(3500-3500*5%,-2) -> 3300 | G3: =1500+500 -> 2000 | I3: 3500 | J3: =1500+500 -> 2000 | L3: 3500 | M3: 2500 | O3: 3500 | P3: 2000
B4: 所得割 | C4: 0.077 | D4: 0.02 | F4: =(60%-60%*5%+20%)*10% -> 0.077 | G4: =(40%-20%)*10% -> 0.02 | I4: =60%*10% -> 0.06 | J4: =40%*10% -> 0.04 | L4: =60%*10% -> 0.06 | M4: =40%*10% -> 0.04 | O4: =60%*10% -> 0.06 | P4: =40%*10% -> 0.04
B5: 按分率 | C5: 0.8 | D5: 0.2 | F5: 0.8 | G5: 0.2 | I5: 0.6 | J5: 0.4 | L5: 0.6 | M5: 0.4 | O5: 0.6 | P5: 0.4
B6: 調整控除等 | C6: 0.04 | D6: 0.01 | F6: 0.04 | G6: 0.01 | I6: 0.03 | J6: 0.02 | L6: 0.03 | M6: 0.02 | O6: 0.03 | P6: 0.02
B7: 寄附金税額控除 | C7: 0.08 | D7: 0.02 | F7: 0.08 | G7: 0.02 | I7: 0.06 | J7: 0.04 | L7: 0.06 | M7: 0.04 | O7: 0.06 | P7: 0.04
B8: 非課税限度額 均等割 | F8: =IF(F11+F12>0,350000*(F11+F12+1)+210000,350000) -> 350000 | I8: =IF(I11+I12>0,320000*(I11+I12+1)+189000,320000) -> 320000 | L8: =IF(L11+L12>0,320000*(L11+L12+1)+189000,320000) -> 320000 | O8: =IF(O11+O12>0,320000*(O11+O12+1)+189000,320000) -> 320000

Sheet jigyosha
E1: =C19 -> 名古屋市 | F1: 確定申告 | H1: 専従者給与控除前
F2: （所得税） | H2: 専従者給与の額 | I2: =-senjusha!I1 -> -960000 | K2: 雑損控除 | M2: 控除額 | N2: 医療費の額 | R2: ="寄付金額 "&TEXT(R3,"#,###")&"円" -> 寄付金額 8,000円 | S2: 寄付金額 9,000円 | T2: 寄付金額 10,000円 | U2: 寄付金額 11,000円 | V2: 寄付金額 12,000円 | W2: 寄付金額 13,000円 | X2: 寄付金額 14,000円 | Z2: 0 | AA2: 0 | AC2: =Z2+1 -> 1 | AD2: =AA2+1 -> 1 | AF2: =AC2+1 -> 2 | AG2: =AD2+1 -> 2 | AI2: =AF2+1 -> 3 | AJ2: =AG2+1 -> 3 | AL2: =AI2+1 -> 4 | AM2: =AJ2+1 -> 4 | AO2: =AL2+1 -> 5 | AP2: =AM2+1 -> 5 | AR2: =AO2+1 -> 6 | AS2: =AP2+1 -> 6
F3: 総所得金額 | G3: =IF(SUM(I1:I3)<0,0,SUM(I1:I3)) -> 0 | H3: 青色申告特別控除額 | I3: -650000 | K3: 医療費控除 | L3: =IF(M3>N3, 0, IF(N3-M3>2000000, 2000000, N3-M3)) -> 0 | M3: =IF(G3<2000000, ROUNDDOWN(G3*5%,0), 100000) -> 0 | P3: 寄附金の額（L43） | R3: 8000 | S3: =R3+1000 -> 9000 | T3: 10000 | U3: 11000 | V3: 12000 | W3: 13000 | X3: 14000 | Z3: =OFFSET($R$2,0,Z2) -> 寄付金額 8,000円 | AC3: =OFFSET($R$2,0,AC2) -> 寄付金額 9,000円 | AF3: =OFFSET($R$2,0,AF2) -> 寄付金額 10,000円 | AI3: =OFFSET($R$2,0,AI2) -> 寄付金額 11,000円 | AL3: =OFFSET($R$2,0,AL2) -> 寄付金額 12,000円 | AO3: =OFFSET($R$2,0,AO2) -> 寄付金額 13,000円 | AR3: =OFFSET($R$2,0,AR2) -> 寄付金額 14,000円
F4: 所得控除額 | G4: =SUM(L2:L13) -> 380000 | K4: 社会保険料控除 | L4: =jigyosha_hoken!S13 -> 0 | P4: 寄附金がなかった場合の所得税額 | Q4: 0 | R4: 0 | S4: 0 | T4: 0 | U4: 0 | V4: 0 | W4: 0 | X4: 0 | Z4: =OFFSET($R$3,0,Z2) -> 8000 | AC4: =OFFSET($R$3,0,AC2) -> 9000 | AF4: =OFFSET($R$3,0,AF2) -> 10000 | AI4: =OFFSET($R$3,0,AI2) -> 11000 | AL4: =OFFSET($R$3,0,AL2) -> 12000 | AO4: =OFFSET($R$3,0,AO2) -> 13000 | AR4: =OFFSET($R$3,0,AR2) -> 14000
F5: 課税所得金額 | G5: =IF(G3-G4<0,0,ROUNDDOWN(G3-G4,-3)) -> 0 | K5: 小規模企業共済等掛金控除 | L5: =N5 -> 0 | N5: 0 | P5: 寄附金があった場合の所得税額 | Q5: =G10 -> 0 | R5: 0 | S5: 0 | T5: 0 | U5: 0 | V5: 0 | W5: 0 | X5: 0 | AA5: =OFFSET($R$6,0,AA2) -> 0 | AD5: =OFFSET($R$6,0,AD2) -> 0 | AG5: =OFFSET($R$6,0,AG2) -> 0 | AJ5: =OFFSET($R$6,0,AJ2) -> 0 | AM5: =OFFSET($R$6,0,AM2) -> 0 | AP5: =OFFSET($R$6,0,AP2) -> 0 | AS5: =OFFSET($R$6,0,AS2) -> 0
F6: 所得税額 | G6: =IF(G5<=1950000, G5*5%, IF(G5<=3300000, G5*10%-97500, IF(G5<=6950000, G5*20%-427500, IF(G5<=9000000, G5*23%-636000, IF(G5<=18000000, G5*33%-1536000, IF(G5<=40000000, G5*40%-2796000, G5*45%-4796000)))))) -> 0 | K6: 生命保険料控除 | L6: =jigyosha_hoken!S8 -> 0 | P6: 所得税の寄附金控除額 | Q6: =Q4-Q5 -> 0 | R6: 0 | S6: 0 | T6: 0 | U6: 0 | V6: 0 | W6: 0 | X6: 0 | AA6: =OFFSET($R$10,0,AA2) -> 0 | AD6: =OFFSET($R$10,0,AD2) -> 0 | AG6: =OFFSET($R$10,0,AG2) -> 0 | AJ6: =OFFSET($R$10,0,AJ2) -> 0 | AM6: =OFFSET($R$10,0,AM2) -> 0 | AP6: =OFFSET($R$10,0,AP2) -> 0 | AS6: =OFFSET($R$10,0,AS2) -> 0
F7: 住宅借入金等特別税額控除額 | K7: 地震保険料控除 | L7: =jigyosha_hoken!S10 -> 0 | P7: 寄附金がなかった場合の住民税額 | Q7: 0 | R7: 0 | S7: 0 | T7: 0 | U7: 0 | V7: 0 | W7: 0 | X7: 0 | AA7: =OFFSET($R$11,0,AA2) -> 0 | AD7: =OFFSET($R$11,0,AD2) -> 0 | AG7: =OFFSET($R$11,0,AG2) -> 0 | AJ7: =OFFSET($R$11,0,AJ2) -> 0 | AM7: =OFFSET($R$11,0,AM2) -> 0 | AP7: =OFFSET($R$11,0,AP2) -> 0 | AS7: =OFFSET($R$11,0,AS2) -> 0
F8: 差引所得税額 | G8: =IF(G7=0, G6, IF(G7>=G6, 0, G6-G7)) -> 0 | K8: 寄附金控除 | L8: =IF(F1="ワンストップ特例",0,IF(L43-2000<0,0,L43-2000)) -> 0 | P8: 寄附金があった場合の住民税額 | Q8: =G32 -> 0 | R8: 0 | S8: 0 | T8: 0 | U8: 0 | V8: 0 | W8: 0 | X8: 0 | AA8: =OFFSET($R$12,0,AA2) -> 0 | AD8: =OFFSET($R$12,0,AD2) -> 0 | AG8: =OFFSET($R$12,0,AG2) -> 0 | AJ8: =OFFSET($R$12,0,AJ2) -> 0 | AM8: =OFFSET($R$12,0,AM2) -> 0 | AP8: =OFFSET($R$12,0,AP2) -> 0 | AS8: =OFFSET($R$12,0,AS2) -> 0
F9: 復興特別所得税額 | G9: =IF(G8>0,ROUNDDOWN((G8)*2.1%,0),0) -> 0 | K9: 寡婦・寡夫控除 | P9: 住民税の寄附金控除額 | Q9: =Q7-Q8 -> 0 | R9: 0 | S9: 0 | T9: 0 | U9: 0 | V9: 0 | W9: 0 | X9: 0 | AA9: =OFFSET($R$16,0,AA2) -> 8000 | AD9: =OFFSET($R$16,0,AD2) -> 9000 | AG9: =OFFSET($R$16,0,AG2) -> 10000 | AJ9: =OFFSET($R$16,0,AJ2) -> 11000 | AM9: =OFFSET($R$16,0,AM2) -> 12000 | AP9: =OFFSET($R$16,0,AP2) -> 13000 | AS9: =OFFSET($R$16,0,AS2) -> 14000
F10: 所得税額及び復興特別所得税額 | G10: =G8+G9 -> 0 | K10: 勤労学生・障害者控除 | P10: 住民税の寄付金控除額（基礎） | Q10: =G28 -> 0 | R10: 0 | S10: 0 | T10: 0 | U10: 0 | V10: 0 | W10: 0 | X10: 0
F11: 源泉徴収税額 | K11: 配偶者（特別）控除 | P11: 住民税の寄付金控除額（特例） | Q11: =G29 -> 0 | R11: 0 | S11: 0 | T11: 0 | U11: 0 | V11: 0 | W11: 0 | X11: 0
F12: 申告納税額 | G12: =IF(G10-G11>0,ROUNDDOWN(G10-G11,-2),G10-G11) -> 0 | K12: 扶養控除 | P12: 住民税の寄付金控除額（ﾜﾝｽﾄｯﾌﾟ） | Q12: =G30 -> 0 | R12: 0 | S12: 0 | T12: 0 | U12: 0 | V12: 0 | W12: 0 | X12: 0
K13: 基礎控除 | L13: 380000 | P13: ふるさと納税の効果合計 | Q13: =Q6+Q9 -> 0 | R13: 0 | S13: 0 | T13: 0 | U13: 0 | V13: 0 | W13: 0 | X13: 0
F14: 予定納税額 | K14: 計 | L14: =SUM(L2:L13) -> 380000 | N14: =SUM(L2:L13)-L8 -> 380000 | P14: 寄附金があった場合の支出額 | Q14: =L43+Q5+Q8 -> 0 | R14: 8000 | S14: 9000 | T14: 10000 | U14: 11000 | V14: 12000 | W14: 13000 | X14: 14000
F15: 納める税金 | G15: =IF(G12-G14>0,G12-G14,0) -> 0 | P15: 寄附金がなかった場合の支出額 | Q15: 0 | R15: 0 | S15: 0 | T15: 0 | U15: 0 | V15: 0 | W15: 0 | X15: 0
F16: 還付される税金 | G16: =IF(G12-G14>0,0,G12-G14) -> 0 | P16: 差額 | Q16: =Q14-Q15 -> 0 | R16: 8000 | S16: 9000 | T16: 10000 | U16: 11000 | V16: 12000 | W16: 13000 | X16: 14000
K17: =K2 -> 雑損控除
K18: 医療費控除 | L18: =L3 -> 0
C19: 名古屋市 | D19: 愛知県 | F19: （住民税） | H19: 市 | I19: 県 | K19: 社会保険料控除 | L19: =L4 -> 0
B20: 均等割 | C20: =city_select!C3 -> 3300 | D20: =city_select!D3 -> 2000 | F20: 総所得金額 | G20: =G3 -> 0 | K20: 小規模企業共済等掛金控除 | L20: =L5 -> 0
B21: 所得割 | C21: =city_select!C4 -> 0.077 | D21: =city_select!D4 -> 0.02 | F21: 所得控除額（住民税） | G21: =SUM(L17:L28) -> 330000 | K21: 生命保険料控除 | L21: =jigyosha_hoken!V8 -> 0
B22: 按分率 | C22: =city_select!C5 -> 0.8 | D22: =city_select!D5 -> 0.2 | F22: 課税所得金額 | G22: =IF(G20-G21<0,0,ROUNDDOWN(G20-G21,-3)) -> 0 | K22: 地震保険料控除 | L22: =jigyosha_hoken!V10 -> 0
B23: 調整控除等 | C23: =city_select!C6 -> 0.04 | D23: =city_select!D6 -> 0.01 | K23: 寄附金控除
B24: 寄附金控除 | C24: =city_select!C7 -> 0.08 | D24: =city_select!D7 -> 0.02 | F24: 均等割 | G24: =H24+I24 -> 0 | H24: =IF(G20<=L35,0,C20) -> 0 | I24: =IF(G20<=L35,0,D20) -> 0 | K24: 寡婦・寡夫控除
F25: 所得割 | G25: 0 | H25: =IF(G20<=L36,0,ROUNDDOWN(G22*C21,0)) -> 0 | I25: =IF(G20<=L36,0,ROUNDDOWN(G22*D21,0)) -> 0 | K25: 勤労学生・障害者控除
F26: 調整控除額 | G26: 0 | H26: =IF(G25=0, 0, IF(G22<=2000000, IF(G22<L31, G22*C23, L31*C23), IF(L31-(G22-2000000)<50000, 50000*C23, (L31-(G22-2000000))*C23))) -> 0 | I26: =IF(G25=0, 0, IF(G22<=2000000, IF(G22<L31, G22*D23, L31*D23), IF(L31-(G22-2000000)<50000, 50000*D23, (L31-(G22-2000000))*D23))) -> 0 | K26: 配偶者（特別）控除
F27: 住宅借入金等特別税額控除額 | G27: =H27+I27 -> 0 | H27: =IF(G7=0, 0, IF((G7-G6)<=0, 0, IF((G7-G6)*C22>H50, H50, (G7-G6)*C22))) -> 0 | I27: =IF(G7=0, 0, IF((G7-G6)<=0, 0, IF((G7-G6)*D22>I50, I50, (G7-G6)*D22))) -> 0 | K27: 扶養控除
F28: 寄附金税額控除 | G28: =IF(G20<=L36, 0, ROUNDUP(IF(L43-2000>0, IF(L43>G36, (G36-2000)*10%, (L43-2000)*10%), 0), -2)) -> 0 | H28: =G28*C24/(C24+D24) -> 0 | I28: =G28*D24/(C24+D24) -> 0 | K28: 基礎控除 | L28: 330000
F29: （特例） | G29: =ROUNDUP( IF(L43-2000>0, IF((L43-2000)*L48>G37, G37, (L43-2000)*L48), 0), -2) -> 0 | H29: =G29*C22/(C22+D22) -> 0 | I29: =G29*D22/(C22+D22) -> 0 | K29: 計 | L29: =SUM(L17:L28) -> 330000
F30: （ワンストップ特例） | G30: 0 | H30: =IF(F1="ワンストップ特例",H29*L55,0) -> 0 | I30: =IF(F1="ワンストップ特例",I29*L55,0) -> 0
F31: 差引所得割額 | G31: 0 | H31: =IF(H25-SUM(H26:H30)>0,ROUNDDOWN(H25-SUM(H26:H30),-2),0) -> 0 | I31: =IF(I25-SUM(I26:I30)>0,ROUNDDOWN(I25-SUM(I26:I30),-2),0) -> 0 | K31: 人的控除の差額 | L31: =SUM(L9:L13)-SUM(L24:L28) -> 50000
F32: 住民税額 | G32: 0 | H32: =H24+H31 -> 0 | I32: =I24+I31 -> 0
F35: 所得税の寄付金控除の限度額 | G35: =G3*40% -> 0 | K35: 非課税限度額 均等割 | L35: =IF(L38+L39>0,350000*(L38+L39+1)+210000,350000) -> 350000
F36: 寄附金税額控除（基本）の限度額 | G36: =G20*30% -> 0 | K36: 非課税限度額 所得割 | L36: =IF(L38+L39>0,350000*(L38+L39+1)+320000,350000) -> 350000
F37: 寄附金税額控除（特例）の限度額 | G37: =ROUNDUP((G25-G26)*20%,0) -> 0 | H37: =G37*C22/(C22+D22) -> 0 | I37: =G37*D22/(C22+D22) -> 0
K38: 控除対象配偶者 | L38: 0
F39: 課税総所得金額 － 人的控除の差額の合計 | K39: 年少扶養親族を含む扶養親族
F40: 0円未満 | G40: 0.9
F41: 195万円以下 | G41: 0.84895 | K41: 寄附金の限度額１ | L41: =G37/L48+2000 -> 2000
F42: 195万円超 330万円以下 | G42: 0.7979 | K42: 寄附金の限度額２ | L42: =IF(N42>=40000000+1000, N42-40000000+1000, IF(N42>=18000000+1000, N42-18000000+1000, IF(N42>=9000000+1000, N42-9000000+1000, IF(N42>=6950000+1000, N42-6950000+1000, IF(N42>=3300000+1000, N42-3300000+1000, IF(N42>=1950000+1000, N42-1950000+1000, N42)))))) -> 0 | N42: =IF(G3-N14<0,0,G3-N14) -> 0
F43: 330万円超 695万円以下 | G43: 0.6958 | K43: 寄附金の額
F44: 695万円超 900万円以下 | G44: 0.66517 | K44: 税額 | L44: =G10+G32 -> 0 | R44: ="iDeCo "&TEXT(R45,"#,###")& "円" -> iDeCo 204,000円 | S44: ="iDeCo "&TEXT(S45,"#,###")& "円" -> iDeCo 216,000円 | T44: iDeCo 228,000円 | U44: iDeCo 240,000円 | V44: iDeCo 252,000円 | W44: iDeCo 264,000円 | X44: iDeCo 276,000円
F45: 900万円超 1,800万円以下 | G45: 0.56307 | K45: 寄附金の額と税額の合計 | L45: =L43+L44 -> 0 | P45: iDeCoの額（N5） | Q45: 0 | R45: =R58 -> 204000 | S45: =S58 -> 216000 | T45: 228000 | U45: 240000 | V45: 252000 | W45: 264000 | X45: 276000
F46: 1,800万円超 4,000万円以下 | G46: 0.4916 | P46: iDeCoがなかった場合の所得税額 | Q46: 0 | R46: 0 | S46: 0 | T46: 0 | U46: 0 | V46: 0 | W46: 0 | X46: 0
F47: 4,000万円超 | G47: 0.44055 | K47: 課税総所得金額 － 人的控除の差額の合計 | L47: =G22-L31 -> -50000 | P47: iDeCoがあった場合の所得税額 | Q47: =G10 -> 0 | R47: 0 | S47: 0 | T47: 0 | U47: 0 | V47: 0 | W47: 0 | X47: 0
K48: 特例控除額の算出に用いる割合 | L48: =IF(L47<0,G40,IF(L47<=1950000,G41,IF(L47<=3300000,G42,IF(L47<=6950000,G43,IF(L47<=9000000,G44,IF(L47<=18000000,G45,IF(L47<=40000000,G46,G47))))))) -> 0.9 | P48: 所得税のiDeCoの効果 | Q48: =Q46-Q47 -> 0 | R48: 0 | S48: 0 | T48: 0 | U48: 0 | V48: 0 | W48: 0 | X48: 0
F49: ※入居日によって変わるので確認すること | H49: 市 | I49: 県 | P49: iDeCoがなかった場合の住民税額 | Q49: 0 | R49: 0 | S49: 0 | T49: 0 | U49: 0 | V49: 0 | W49: 0 | X49: 0
F50: 住民税の住宅借入金等 特別税額控除の限度額 | G50: =H50+I50 -> 0 | H50: =IF(G5*C23>H52,H52,G5*C23) -> 0 | I50: =IF(G5*D23>I52,I52,G5*D23) -> 0 | P50: iDeCoがあった場合の住民税額 | Q50: =G32 -> 0 | R50: 0 | S50: 0 | T50: 0 | U50: 0 | V50: 0 | W50: 0 | X50: 0
P51: 住民税のiDeCoの効果 | Q51: =Q49-Q50 -> 0 | R51: 0 | S51: 0 | T51: 0 | U51: 0 | V51: 0 | W51: 0 | X51: 0
G52: 97500 | H52: =G52*C22 -> 78000 | I52: =G52*D22 -> 19500 | P52: iDeCoがあった場合の税支出額 | Q52: =Q47+Q50 -> 0 | R52: 0 | S52: 0 | T52: 0 | U52: 0 | V52: 0 | W52: 0 | X52: 0
P53: iDeCoがなかった場合の税支出額 | Q53: 0 | R53: 0 | S53: 0 | T53: 0 | U53: 0 | V53: 0 | W53: 0 | X53: 0
F54: （ワンストップ特例） | P54: 差額 | Q54: =Q52-Q53 -> 0 | R54: 0 | S54: 0 | T54: 0 | U54: 0 | V54: 0 | W54: 0 | X54: 0
F55: 課税総所得金額 － 人的控除の差額の合計 | K55: ワンストップ特例の計算に用いる割合 | L55: =IF(L47<=1950000, G56, IF(L47<=3300000, G57, IF(L47<=6950000, G58, IF(L47<=9000000, G59, G60)))) -> 0.0601331056
F56: 195万円以下 | G56: =5.105/84.895 -> 0.0601331056 | H56: 5.105/84.895
F57: 195万円超 330万円以下 | G57: =10.21/79.79 -> 0.1279608974 | H57: 10.21/79.79 | P57: 月額 | R57: 17000 | S57: =R57+1000 -> 18000 | T57: 19000 | U57: 20000 | V57: 21000 | W57: 22000 | X57: 23000
F58: 330万円超 695万円以下 | G58: =20.42/69.58 -> 0.2934751365 | H58: 20.42/69.58 | P58: 年額 | R58: =R57*12 -> 204000 | S58: =S57*12 -> 216000 | T58: 228000 | U58: 240000 | V58: 252000 | W58: 264000 | X58: 276000
F59: 695万円超 900万円以下 | G59: =23.483/66.517 -> 0.3530375693 | H59: 23.483/66.517
F60: 900万円超 1,800万円以下 | G60: =33.693/56.307 -> 0.598380308 | H60: 33.693/56.307

Sheet jigyosha_hoken
Q2: 所得税 | T2: 住民税
B3: 区分 | C3: 契約番号 証券記号番号 | D3: 保険会社等 の名称 | E3: 保険等の 種類 | F3: 保険期間 又は 年金支払期間 | G3: 保険等の 契約者の氏名 | H3: 保険金等の受取人 | J3: 新・旧の区分 | K3: あなたが本年中に支払った保険料等の金額（分配を受けた剰余金等の控除後の金額） （ａ） | Q3: 計算過程 | S3: 控除額 | T3: 計算過程 | V3: 控除額
H4: 氏名 | I4: あなたとの 続柄 | N4: 一般の生命保険料 | O4: 新 | P4: =SUMIFS(K:K,B:B,"="&N4,J:J,"="&O4) -> 0 | Q4: =IF(P4<=20000, P4, IF(P4<=40000, ROUNDUP(P4/2,0)+10000, IF(P4<=80000, ROUNDUP(P4/4,0)+20000, 40000))) -> 0 | R4: =IF(Q4+Q5<=40000,Q4+Q5,40000) -> 0 | T4: =IF(P4<=12000, P4, IF(P4<=32000, ROUNDUP(P4/2,0)+6000, IF(P4<=56000, ROUNDUP(P4/4,0)+14000, 28000))) -> 0 | U4: =IF(T4+T5<=28000,T4+T5,28000) -> 0
N5: 一般の生命保険料 | O5: 旧 | P5: =SUMIFS(K:K,B:B,"="&N5,J:J,"="&O5) -> 0 | Q5: =IF(P5<=25000, P5, IF(P5<=50000, ROUNDUP(P5/2,0)+12500, IF(P5<=100000, ROUNDUP(P5/4,0)+25000, 50000))) -> 0 | R5: =IF(Q5>R4,Q5,R4) -> 0 | T5: =IF(P5<=15000, P5, IF(P5<=40000, ROUNDUP(P5/2,0)+7500, IF(P5<=70000, ROUNDUP(P5/4,0)+17500, 35000))) -> 0 | U5: =IF(T5>U4,T5,U4) -> 0
N6: 介護医療保険料 | P6: =SUMIFS(K:K,B:B,"="&N6,J:J,"="&O6) -> 0 | Q6: =IF(P6<=20000, P6, IF(P6<=40000, ROUNDUP(P6/2,0)+10000, IF(P6<=80000, ROUNDUP(P6/4,0)+20000, 40000))) -> 0 | R6: =Q6 -> 0 | T6: =IF(P6<=12000, P6, IF(P6<=32000, ROUNDUP(P6/2,0)+6000, IF(P6<=56000, ROUNDUP(P6/4,0)+14000, 28000))) -> 0 | U6: =T6 -> 0
N7: 個人年金保険料 | O7: 新 | P7: =SUMIFS(K:K,B:B,"="&N7,J:J,"="&O7) -> 0 | Q7: =IF(P7<=20000, P7, IF(P7<=40000, ROUNDUP(P7/2,0)+10000, IF(P7<=80000, ROUNDUP(P7/4,0)+20000, 40000))) -> 0 | R7: =IF(Q7+Q8<=40000,Q7+Q8,40000) -> 0 | T7: =IF(P7<=12000, P7, IF(P7<=32000, ROUNDUP(P7/2,0)+6000, IF(P7<=56000, ROUNDUP(P7/4,0)+14000, 28000))) -> 0 | U7: =IF(T7+T8<=28000,T7+T8,28000) -> 0
N8: 個人年金保険料 | O8: 旧 | P8: =SUMIFS(K:K,B:B,"="&N8,J:J,"="&O8) -> 0 | Q8: =IF(P8<=25000, P8, IF(P8<=50000, ROUNDUP(P8/2,0)+12500, IF(P8<=100000, ROUNDUP(P8/4,0)+25000, 50000))) -> 0 | R8: =IF(Q8>R7,Q8,R7) -> 0 | S8: =IF(R5+R6+R8<=120000,R5+R6+R8,120000) -> 0 | T8: =IF(P8<=15000, P8, IF(P8<=40000, ROUNDUP(P8/2,0)+7500, IF(P8<=70000, ROUNDUP(P8/4,0)+17500, 35000))) -> 0 | U8: =IF(T8>U7,T8,U7) -> 0 | V8: =IF(U5+U6+U8<=70000,U5+U6+U8,70000) -> 0
N9: 地震保険料 | P9: =SUMIFS(K:K,B:B,"="&N9) -> 0 | Q9: =IF(P9<=50000,P9,50000) -> 0 | R9: =Q9 -> 0 | T9: =IF(P9<=50000,ROUNDUP(P9/2,0),25000) -> 0 | U9: =T9 -> 0
N10: 旧長期損害保険料 | P10: =SUMIFS(K:K,B:B,"="&N10) -> 0 | Q10: =IF(P10<=10000, P10, IF(P10<=20000, ROUNDUP(P10/2,0)+5000, 15000)) -> 0 | R10: =Q10 -> 0 | S10: =IF(R9+R10<=50000,R9+R10,50000) -> 0 | T10: =IF(P10<=5000, P10, IF(P10<=15000, ROUNDUP(P10/2,0)+2500, 10000)) -> 0 | U10: =T10 -> 0 | V10: =IF(U9+U10<=50000,U9+U10,50000) -> 0
N11: 国民健康保険料 | P11: =SUMIFS(K:K,B:B,"="&N11) -> 0
N12: 国民年金保険料 | P12: =SUMIFS(K:K,B:B,"="&N12) -> 0
N13: その他社会保険料 | P13: =SUMIFS(K:K,B:B,"="&N13) -> 0 | S13: =SUM(P11:P13) -> 0 | V13: =SUM(P11:P13) -> 0
B14: 区分 | C14: 契約番号 証券記号番号 | D14: 保険会社等 の名称 | E14: 保険等 の種類（目的） | F14: 保険期間 | G14: 保険等の 契約者の氏名 | H14: 保険等の対象となった | J14: 地震保険料又は 旧長期損害保険料の区分 | K14: あなたが本年中に支払った保険料等のうち、左欄の区分に係る金額（分配を受けた剰余金等の控除後の金額） Ⓐ
H15: 家屋等に居住又は家財を利用している者等の氏名 | I15: あなたとの 続柄
J19: =IF(B19="","",B19) -> 
B21: 社会保険の種類 | D21: 保険料支払先の名称 | G21: 保険料を 負担することに なっている人 | H21: 氏名 | I21: あなたとの 続柄 | K21: あなたが本年中に支払った保険料の金額

Sheet senjusha
E1: =C19 -> 名古屋市 | F1: 確定申告 | H1: 給与の総額 | I1: =hikaku!B2 -> 960000
F2: （所得税） | H2: 年調給与額 | I2: =IF(I1<=1618999,I1,IF(I1<=1619999,I1-MOD(I1-1619000,1000),IF(I1<=1623999,I1-MOD(I1-1620000,2000),IF(I1<=6599999,I1-MOD(I1-1624000,4000),I1)))) -> 960000 | K2: 雑損控除 | M2: 控除額 | N2: 医療費の額 | R2: ="寄付金額 "&TEXT(R3,"#,###")&"円" -> 寄付金額 8,000円 | S2: 寄付金額 9,000円 | T2: 寄付金額 10,000円 | U2: 寄付金額 11,000円 | V2: 寄付金額 12,000円 | W2: 寄付金額 13,000円 | X2: 寄付金額 14,000円 | Z2: 0 | AA2: 0 | AC2: =Z2+1 -> 1 | AD2: =AA2+1 -> 1 | AF2: =AC2+1 -> 2 | AG2: =AD2+1 -> 2 | AI2: =AF2+1 -> 3 | AJ2: =AG2+1 -> 3 | AL2: =AI2+1 -> 4 | AM2: =AJ2+1 -> 4 | AO2: =AL2+1 -> 5 | AP2: =AM2+1 -> 5 | AR2: =AO2+1 -> 6 | AS2: =AP2+1 -> 6
F3: 総所得金額 | G3: =I3 -> 310000 | H3: 給与所得控除後の給与等の金額 | I3: =IF(I2<=650999,0,IF(I2<=1618999,I2-650000,IF(I2<=1619999,I2*60%-2400,IF(I2<=1621999,I2*60%-2000,IF(I2<=1623999,I2*60%-1200,IF(I2<=1627999,I2*60%-400,IF(I2<=1799999,I2*60%,IF(I2<=3599999,I2*70%-180000,IF(I2<=6599999,I2*80%-540000,IF(I2<=9999999,I2*90%-1200000,IF(I2<=20000000,I2-2200000))))))))))) -> 310000 | K3: 医療費控除 | L3: =IF(M3>N3, 0, IF(N3-M3>2000000, 2000000, N3-M3)) -> 0 | M3: =IF(G3<2000000, ROUNDDOWN(G3*5%,0), 100000) -> 15500 | P3: 寄附金の額（L43） | R3: 8000 | S3: =R3+1000 -> 9000 | T3: 10000 | U3: 11000 | V3: 12000 | W3: 13000 | X3: 14000 | Z3: =OFFSET($R$2,0,Z2) -> 寄付金額 8,000円 | AC3: =OFFSET($R$2,0,AC2) -> 寄付金額 9,000円 | AF3: =OFFSET($R$2,0,AF2) -> 寄付金額 10,000円 | AI3: =OFFSET($R$2,0,AI2) -> 寄付金額 11,000円 | AL3: =OFFSET($R$2,0,AL2) -> 寄付金額 12,000円 | AO3: =OFFSET($R$2,0,AO2) -> 寄付金額 13,000円 | AR3: =OFFSET($R$2,0,AR2) -> 寄付金額 14,000円
F4: 所得控除額 | G4: =SUM(L2:L13) -> 380000 | K4: 社会保険料控除 | L4: =senjusha_hoken!S13 -> 0 | P4: 寄附金がなかった場合の所得税額 | Q4: 0 | R4: 0 | S4: 0 | T4: 0 | U4: 0 | V4: 0 | W4: 0 | X4: 0 | Z4: =OFFSET($R$3,0,Z2) -> 8000 | AC4: =OFFSET($R$3,0,AC2) -> 9000 | AF4: =OFFSET($R$3,0,AF2) -> 10000 | AI4: =OFFSET($R$3,0,AI2) -> 11000 | AL4: =OFFSET($R$3,0,AL2) -> 12000 | AO4: =OFFSET($R$3,0,AO2) -> 13000 | AR4: =OFFSET($R$3,0,AR2) -> 14000
F5: 課税所得金額 | G5: =IF(G3-G4<0,0,ROUNDDOWN(G3-G4,-3)) -> 0 | K5: 小規模企業共済等掛金控除 | L5: =N5 -> 0 | N5: 0 | P5: 寄附金があった場合の所得税額 | Q5: =G10 -> 0 | R5: 0 | S5: 0 | T5: 0 | U5: 0 | V5: 0 | W5: 0 | X5: 0 | AA5: =OFFSET($R$6,0,AA2) -> 0 | AD5: =OFFSET($R$6,0,AD2) -> 0 | AG5: =OFFSET($R$6,0,AG2) -> 0 | AJ5: =OFFSET($R$6,0,AJ2) -> 0 | AM5: =OFFSET($R$6,0,AM2) -> 0 | AP5: =OFFSET($R$6,0,AP2) -> 0 | AS5: =OFFSET($R$6,0,AS2) -> 0
F6: 所得税額 | G6: =IF(G5<=1950000, G5*5%, IF(G5<=3300000, G5*10%-97500, IF(G5<=6950000, G5*20%-427500, IF(G5<=9000000, G5*23%-636000, IF(G5<=18000000, G5*33%-1536000, IF(G5<=40000000, G5*40%-2796000, G5*45%-4796000)))))) -> 0 | K6: 生命保険料控除 | L6: =senjusha_hoken!S8 -> 0 | P6: 所得税の寄附金控除額 | Q6: =Q4-Q5 -> 0 | R6: 0 | S6: 0 | T6: 0 | U6: 0 | V6: 0 | W6: 0 | X6: 0 | AA6: =OFFSET($R$10,0,AA2) -> 0 | AD6: =OFFSET($R$10,0,AD2) -> 0 | AG6: =OFFSET($R$10,0,AG2) -> 0 | AJ6: =OFFSET($R$10,0,AJ2) -> 0 | AM6: =OFFSET($R$10,0,AM2) -> 0 | AP6: =OFFSET($R$10,0,AP2) -> 0 | AS6: =OFFSET($R$10,0,AS2) -> 0
F7: 住宅借入金等特別税額控除額 | K7: 地震保険料控除 | L7: =senjusha_hoken!S10 -> 0 | P7: 寄附金がなかった場合の住民税額 | Q7: 0 | R7: 0 | S7: 0 | T7: 0 | U7: 0 | V7: 0 | W7: 0 | X7: 0 | AA7: =OFFSET($R$11,0,AA2) -> 0 | AD7: =OFFSET($R$11,0,AD2) -> 0 | AG7: =OFFSET($R$11,0,AG2) -> 0 | AJ7: =OFFSET($R$11,0,AJ2) -> 0 | AM7: =OFFSET($R$11,0,AM2) -> 0 | AP7: =OFFSET($R$11,0,AP2) -> 0 | AS7: =OFFSET($R$11,0,AS2) -> 0
F8: 差引所得税額 | G8: =IF(G7=0, G6, IF(G7>=G6, 0, G6-G7)) -> 0 | K8: 寄附金控除 | L8: =IF(F1="ワンストップ特例",0,IF(L43-2000<0,0,L43-2000)) -> 0 | P8: 寄附金があった場合の住民税額 | Q8: =G32 -> 0 | R8: 0 | S8: 0 | T8: 0 | U8: 0 | V8: 0 | W8: 0 | X8: 0 | AA8: =OFFSET($R$12,0,AA2) -> 0 | AD8: =OFFSET($R$12,0,AD2) -> 0 | AG8: =OFFSET($R$12,0,AG2) -> 0 | AJ8: =OFFSET($R$12,0,AJ2) -> 0 | AM8: =OFFSET($R$12,0,AM2) -> 0 | AP8: =OFFSET($R$12,0,AP2) -> 0 | AS8: =OFFSET($R$12,0,AS2) -> 0
F9: 復興特別所得税額 | G9: =IF(G8>0,ROUNDDOWN((G8)*2.1%,0),0) -> 0 | K9: 寡婦・寡夫控除 | P9: 住民税の寄附金控除額 | Q9: =Q7-Q8 -> 0 | R9: 0 | S9: 0 | T9: 0 | U9: 0 | V9: 0 | W9: 0 | X9: 0 | AA9: =OFFSET($R$16,0,AA2) -> 8000 | AD9: =OFFSET($R$16,0,AD2) -> 9000 | AG9: =OFFSET($R$16,0,AG2) -> 10000 | AJ9: =OFFSET($R$16,0,AJ2) -> 11000 | AM9: =OFFSET($R$16,0,AM2) -> 12000 | AP9: =OFFSET($R$16,0,AP2) -> 13000 | AS9: =OFFSET($R$16,0,AS2) -> 14000
F10: 所得税額及び復興特別所得税額 | G10: =G8+G9 -> 0 | K10: 勤労学生・障害者控除 | P10: 住民税の寄付金控除額（基礎） | Q10: =G28 -> 0 | R10: 0 | S10: 0 | T10: 0 | U10: 0 | V10: 0 | W10: 0 | X10: 0
F11: 源泉徴収税額 | K11: 配偶者（特別）控除 | P11: 住民税の寄付金控除額（特例） | Q11: =G29 -> 0 | R11: 0 | S11: 0 | T11: 0 | U11: 0 | V11: 0 | W11: 0 | X11: 0
F12: 申告納税額 | G12: =IF(G10-G11>0,ROUNDDOWN(G10-G11,-2),G10-G11) -> 0 | K12: 扶養控除 | P12: 住民税の寄付金控除額（ﾜﾝｽﾄｯﾌﾟ） | Q12: =G30 -> 0 | R12: 0 | S12: 0 | T12: 0 | U12: 0 | V12: 0 | W12: 0 | X12: 0
K13: 基礎控除 | L13: 380000 | P13: ふるさと納税の効果合計 | Q13: =Q6+Q9 -> 0 | R13: 0 | S13: 0 | T13: 0 | U13: 0 | V13: 0 | W13: 0 | X13: 0
F14: 予定納税額 | K14: 計 | L14: =SUM(L2:L13) -> 380000 | N14: =SUM(L2:L13)-L8 -> 380000 | P14: 寄附金があった場合の支出額 | Q14: =L43+Q5+Q8 -> 0 | R14: 8000 | S14: 9000 | T14: 10000 | U14: 11000 | V14: 12000 | W14: 13000 | X14: 14000
F15: 納める税金 | G15: =IF(G12-G14>0,G12-G14,0) -> 0 | P15: 寄附金がなかった場合の支出額 | Q15: 0 | R15: 0 | S15: 0 | T15: 0 | U15: 0 | V15: 0 | W15: 0 | X15: 0
F16: 還付される税金 | G16: =IF(G12-G14>0,0,G12-G14) -> 0 | P16: 差額 | Q16: =Q14-Q15 -> 0 | R16: 8000 | S16: 9000 | T16: 10000 | U16: 11000 | V16: 12000 | W16: 13000 | X16: 14000
K17: =K2 -> 雑損控除
K18: 医療費控除 | L18: =L3 -> 0
C19: =jigyosha!C19 -> 名古屋市 | D19: 愛知県 | F19: （住民税） | H19: 市 | I19: 県 | K19: 社会保険料控除 | L19: =L4 -> 0
B20: 均等割 | C20: =city_select!C3 -> 3300 | D20: =city_select!D3 -> 2000 | F20: 総所得金額 | G20: =G3 -> 310000 | K20: 小規模企業共済等掛金控除 | L20: =L5 -> 0
B21: 所得割 | C21: =city_select!C4 -> 0.077 | D21: =city_select!D4 -> 0.02 | F21: 所得控除額（住民税） | G21: =SUM(L17:L28) -> 330000 | K21: 生命保険料控除 | L21: =senjusha_hoken!V8 -> 0
B22: 按分率 | C22: =city_select!C5 -> 0.8 | D22: =city_select!D5 -> 0.2 | F22: 課税所得金額 | G22: =IF(G20-G21<0,0,ROUNDDOWN(G20-G21,-3)) -> 0 | K22: 地震保険料控除 | L22: =senjusha_hoken!V10 -> 0
B23: 調整控除等 | C23: =city_select!C6 -> 0.04 | D23: =city_select!D6 -> 0.01 | K23: 寄附金控除
B24: 寄附金控除 | C24: =city_select!C7 -> 0.08 | D24: =city_select!D7 -> 0.02 | F24: 均等割 | G24: =H24+I24 -> 0 | H24: =IF(G20<=L35,0,C20) -> 0 | I24: =IF(G20<=L35,0,D20) -> 0 | K24: 寡婦・寡夫控除
F25: 所得割 | G25: 0 | H25: =IF(G20<=L36,0,ROUNDDOWN(G22*C21,0)) -> 0 | I25: =IF(G20<=L36,0,ROUNDDOWN(G22*D21,0)) -> 0 | K25: 勤労学生・障害者控除
F26: 調整控除額 | G26: 0 | H26: =IF(G25=0, 0, IF(G22<=2000000, IF(G22<L31, G22*C23, L31*C23), IF(L31-(G22-2000000)<50000, 50000*C23, (L31-(G22-2000000))*C23))) -> 0 | I26: =IF(G25=0, 0, IF(G22<=2000000, IF(G22<L31, G22*D23, L31*D23), IF(L31-(G22-2000000)<50000, 50000*D23, (L31-(G22-2000000))*D23))) -> 0 | K26: 配偶者（特別）控除
F27: 住宅借入金等特別税額控除額 | G27: =H27+I27 -> 0 | H27: =IF(G7=0, 0, IF((G7-G6)<=0, 0, IF((G7-G6)*C22>H50, H50, (G7-G6)*C22))) -> 0 | I27: =IF(G7=0, 0, IF((G7-G6)<=0, 0, IF((G7-G6)*D22>I50, I50, (G7-G6)*D22))) -> 0 | K27: 扶養控除
F28: 寄附金税額控除 | G28: =IF(G20<=L36, 0, ROUNDUP(IF(L43-2000>0, IF(L43>G36, (G36-2000)*10%, (L43-2000)*10%), 0), -2)) -> 0 | H28: =G28*C24/(C24+D24) -> 0 | I28: =G28*D24/(C24+D24) -> 0 | K28: 基礎控除 | L28: 330000
F29: （特例） | G29: =ROUNDUP( IF(L43-2000>0, IF((L43-2000)*L48>G37, G37, (L43-2000)*L48), 0), -2) -> 0 | H29: =G29*C22/(C22+D22) -> 0 | I29: =G29*D22/(C22+D22) -> 0 | K29: 計 | L29: =SUM(L17:L28) -> 330000
F30: （ワンストップ特例） | G30: 0 | H30: =IF(F1="ワンストップ特例",H29*L55,0) -> 0 | I30: =IF(F1="ワンストップ特例",I29*L55,0) -> 0
F31: 差引所得割額 | G31: 0 | H31: =IF(H25-SUM(H26:H30)>0,ROUNDDOWN(H25-SUM(H26:H30),-2),0) -> 0 | I31: =IF(I25-SUM(I26:I30)>0,ROUNDDOWN(I25-SUM(I26:I30),-2),0) -> 0 | K31: 人的控除の差額 | L31: =SUM(L9:L13)-SUM(L24:L28) -> 50000
F32: 住民税額 | G32: 0 | H32: =H24+H31 -> 0 | I32: =I24+I31 -> 0
F35: 所得税の寄付金控除の限度額 | G35: =G3*40% -> 124000 | K35: 非課税限度額 均等割 | L35: =IF(L38+L39>0,350000*(L38+L39+1)+210000,350000) -> 350000
F36: 寄附金税額控除（基本）の限度額 | G36: =G20*30% -> 93000 | K36: 非課税限度額 所得割 | L36: =IF(L38+L39>0,350000*(L38+L39+1)+320000,350000) -> 350000
F37: 寄附金税額控除（特例）の限度額 | G37: =ROUNDUP((G25-G26)*20%,0) -> 0 | H37: =G37*C22/(C22+D22) -> 0 | I37: =G37*D22/(C22+D22) -> 0
K38: 控除対象配偶者 | L38: 0
F39: 課税総所得金額 － 人的控除の差額の合計 | K39: 年少扶養親族を含む扶養親族
F40: 0円未満 | G40: 0.9
F41: 195万円以下 | G41: 0.84895 | K41: 寄附金の限度額１ | L41: =G37/L48+2000 -> 2000
F42: 195万円超 330万円以下 | G42: 0.7979 | K42: 寄附金の限度額２ | L42: =IF(N42>=40000000+1000, N42-40000000+1000, IF(N42>=18000000+1000, N42-18000000+1000, IF(N42>=9000000+1000, N42-9000000+1000, IF(N42>=6950000+1000, N42-6950000+1000, IF(N42>=3300000+1000, N42-3300000+1000, IF(N42>=1950000+1000, N42-1950000+1000, N42)))))) -> 0 | N42: =IF(G3-N14<0,0,G3-N14) -> 0
F43: 330万円超 695万円以下 | G43: 0.6958 | K43: 寄附金の額 | L43: 0
F44: 695万円超 900万円以下 | G44: 0.66517 | K44: 税額 | L44: =G10+G32 -> 0 | R44: ="iDeCo "&TEXT(R45,"#,###")& "円" -> iDeCo 204,000円 | S44: ="iDeCo "&TEXT(S45,"#,###")& "円" -> iDeCo 216,000円 | T44: iDeCo 228,000円 | U44: iDeCo 240,000円 | V44: iDeCo 252,000円 | W44: iDeCo 264,000円 | X44: iDeCo 276,000円
F45: 900万円超 1,800万円以下 | G45: 0.56307 | K45: 寄附金の額と税額の合計 | L45: =L43+L44 -> 0 | P45: iDeCoの額（N5） | Q45: 0 | R45: =R58 -> 204000 | S45: =S58 -> 216000 | T45: 228000 | U45: 240000 | V45: 252000 | W45: 264000 | X45: 276000
F46: 1,800万円超 4,000万円以下 | G46: 0.4916 | P46: iDeCoがなかった場合の所得税額 | Q46: 0 | R46: 0 | S46: 0 | T46: 0 | U46: 0 | V46: 0 | W46: 0 | X46: 0
F47: 4,000万円超 | G47: 0.44055 | K47: 課税総所得金額 － 人的控除の差額の合計 | L47: =G22-L31 -> -50000 | P47: iDeCoがあった場合の所得税額 | Q47: =G10 -> 0 | R47: 0 | S47: 0 | T47: 0 | U47: 0 | V47: 0 | W47: 0 | X47: 0
K48: 特例控除額の算出に用いる割合 | L48: =IF(L47<0,G40,IF(L47<=1950000,G41,IF(L47<=3300000,G42,IF(L47<=6950000,G43,IF(L47<=9000000,G44,IF(L47<=18000000,G45,IF(L47<=40000000,G46,G47))))))) -> 0.9 | P48: 所得税のiDeCoの効果 | Q48: =Q46-Q47 -> 0 | R48: 0 | S48: 0 | T48: 0 | U48: 0 | V48: 0 | W48: 0 | X48: 0
F49: ※入居日によって変わるので確認すること | H49: 市 | I49: 県 | P49: iDeCoがなかった場合の住民税額 | Q49: 0 | R49: 0 | S49: 0 | T49: 0 | U49: 0 | V49: 0 | W49: 0 | X49: 0
F50: 住民税の住宅借入金等 特別税額控除の限度額 | G50: =H50+I50 -> 0 | H50: =IF(G5*C23>H52,H52,G5*C23) -> 0 | I50: =IF(G5*D23>I52,I52,G5*D23) -> 0 | P50: iDeCoがあった場合の住民税額 | Q50: =G32 -> 0 | R50: 0 | S50: 0 | T50: 0 | U50: 0 | V50: 0 | W50: 0 | X50: 0
P51: 住民税のiDeCoの効果 | Q51: =Q49-Q50 -> 0 | R51: 0 | S51: 0 | T51: 0 | U51: 0 | V51: 0 | W51: 0 | X51: 0
G52: 97500 | H52: =G52*C22 -> 78000 | I52: =G52*D22 -> 19500 | P52: iDeCoがあった場合の税支出額 | Q52: =Q47+Q50 -> 0 | R52: 0 | S52: 0 | T52: 0 | U52: 0 | V52: 0 | W52: 0 | X52: 0
P53: iDeCoがなかった場合の税支出額 | Q53: 0 | R53: 0 | S53: 0 | T53: 0 | U53: 0 | V53: 0 | W53: 0 | X53: 0
F54: （ワンストップ特例） | P54: 差額 | Q54: =Q52-Q53 -> 0 | R54: 0 | S54: 0 | T54: 0 | U54: 0 | V54: 0 | W54: 0 | X54: 0
F55: 課税総所得金額 － 人的控除の差額の合計 | K55: ワンストップ特例の計算に用いる割合 | L55: =IF(L47<=1950000, G56, IF(L47<=3300000, G57, IF(L47<=6950000, G58, IF(L47<=9000000, G59, G60)))) -> 0.0601331056
F56: 195万円以下 | G56: =5.105/84.895 -> 0.0601331056 | H56: 5.105/84.895
F57: 195万円超 330万円以下 | G57: =10.21/79.79 -> 0.1279608974 | H57: 10.21/79.79 | P57: 月額 | R57: 17000 | S57: =R57+1000 -> 18000 | T57: 19000 | U57: 20000 | V57: 21000 | W57: 22000 | X57: 23000
F58: 330万円超 695万円以下 | G58: =20.42/69.58 -> 0.2934751365 | H58: 20.42/69.58 | P58: 年額 | R58: =R57*12 -> 204000 | S58: =S57*12 -> 216000 | T58: 228000 | U58: 240000 | V58: 252000 | W58: 264000 | X58: 276000
F59: 695万円超 900万円以下 | G59: =23.483/66.517 -> 0.3530375693 | H59: 23.483/66.517
F60: 900万円超 1,800万円以下 | G60: =33.693/56.307 -> 0.598380308 | H60: 33.693/56.307

Sheet senjusha_hoken
Q2: 所得税 | T2: 住民税
B3: 区分 | C3: 契約番号 証券記号番号 | D3: 保険会社等 の名称 | E3: 保険等の 種類 | F3: 保険期間 又は 年金支払期間 | G3: 保険等の 契約者の氏名 | H3: 保険金等の受取人 | J3: 新・旧の区分 | K3: あなたが本年中に支払った保険料等の金額（分配を受けた剰余金等の控除後の金額） （ａ） | Q3: 計算過程 | S3: 控除額 | T3: 計算過程 | V3: 控除額
H4: 氏名 | I4: あなたとの 続柄 | N4: 一般の生命保険料 | O4: 新 | P4: =SUMIFS(K:K,B:B,"="&N4,J:J,"="&O4) -> 0 | Q4: =IF(P4<=20000, P4, IF(P4<=40000, ROUNDUP(P4/2,0)+10000, IF(P4<=80000, ROUNDUP(P4/4,0)+20000, 40000))) -> 0 | R4: =IF(Q4+Q5<=40000,Q4+Q5,40000) -> 0 | T4: =IF(P4<=12000, P4, IF(P4<=32000, ROUNDUP(P4/2,0)+6000, IF(P4<=56000, ROUNDUP(P4/4,0)+14000, 28000))) -> 0 | U4: =IF(T4+T5<=28000,T4+T5,28000) -> 0
N5: 一般の生命保険料 | O5: 旧 | P5: =SUMIFS(K:K,B:B,"="&N5,J:J,"="&O5) -> 0 | Q5: =IF(P5<=25000, P5, IF(P5<=50000, ROUNDUP(P5/2,0)+12500, IF(P5<=100000, ROUNDUP(P5/4,0)+25000, 50000))) -> 0 | R5: =IF(Q5>R4,Q5,R4) -> 0 | T5: =IF(P5<=15000, P5, IF(P5<=40000, ROUNDUP(P5/2,0)+7500, IF(P5<=70000, ROUNDUP(P5/4,0)+17500, 35000))) -> 0 | U5: =IF(T5>U4,T5,U4) -> 0
N6: 介護医療保険料 | P6: =SUMIFS(K:K,B:B,"="&N6,J:J,"="&O6) -> 0 | Q6: =IF(P6<=20000, P6, IF(P6<=40000, ROUNDUP(P6/2,0)+10000, IF(P6<=80000, ROUNDUP(P6/4,0)+20000, 40000))) -> 0 | R6: =Q6 -> 0 | T6: =IF(P6<=12000, P6, IF(P6<=32000, ROUNDUP(P6/2,0)+6000, IF(P6<=56000, ROUNDUP(P6/4,0)+14000, 28000))) -> 0 | U6: =T6 -> 0
N7: 個人年金保険料 | O7: 新 | P7: =SUMIFS(K:K,B:B,"="&N7,J:J,"="&O7) -> 0 | Q7: =IF(P7<=20000, P7, IF(P7<=40000, ROUNDUP(P7/2,0)+10000, IF(P7<=80000, ROUNDUP(P7/4,0)+20000, 40000))) -> 0 | R7: =IF(Q7+Q8<=40000,Q7+Q8,40000) -> 0 | T7: =IF(P7<=12000, P7, IF(P7<=32000, ROUNDUP(P7/2,0)+6000, IF(P7<=56000, ROUNDUP(P7/4,0)+14000, 28000))) -> 0 | U7: =IF(T7+T8<=28000,T7+T8,28000) -> 0
N8: 個人年金保険料 | O8: 旧 | P8: =SUMIFS(K:K,B:B,"="&N8,J:J,"="&O8) -> 0 | Q8: =IF(P8<=25000, P8, IF(P8<=50000, ROUNDUP(P8/2,0)+12500, IF(P8<=100000, ROUNDUP(P8/4,0)+25000, 50000))) -> 0 | R8: =IF(Q8>R7,Q8,R7) -> 0 | S8: =IF(R5+R6+R8<=120000,R5+R6+R8,120000) -> 0 | T8: =IF(P8<=15000, P8, IF(P8<=40000, ROUNDUP(P8/2,0)+7500, IF(P8<=70000, ROUNDUP(P8/4,0)+17500, 35000))) -> 0 | U8: =IF(T8>U7,T8,U7) -> 0 | V8: =IF(U5+U6+U8<=70000,U5+U6+U8,70000) -> 0
N9: 地震保険料 | P9: =SUMIFS(K:K,B:B,"="&N9) -> 0 | Q9: =IF(P9<=50000,P9,50000) -> 0 | R9: =Q9 -> 0 | T9: =IF(P9<=50000,ROUNDUP(P9/2,0),25000) -> 0 | U9: =T9 -> 0
N10: 旧長期損害保険料 | P10: =SUMIFS(K:K,B:B,"="&N10) -> 0 | Q10: =IF(P10<=10000, P10, IF(P10<=20000, ROUNDUP(P10/2,0)+5000, 15000)) -> 0 | R10: =Q10 -> 0 | S10: =IF(R9+R10<=50000,R9+R10,50000) -> 0 | T10: =IF(P10<=5000, P10, IF(P10<=15000, ROUNDUP(P10/2,0)+2500, 10000)) -> 0 | U10: =T10 -> 0 | V10: =IF(U9+U10<=50000,U9+U10,50000) -> 0
N11: 国民健康保険料 | P11: =SUMIFS(K:K,B:B,"="&N11) -> 0
N12: 国民年金保険料 | P12: =SUMIFS(K:K,B:B,"="&N12) -> 0
N13: その他社会保険料 | P13: =SUMIFS(K:K,B:B,"="&N13) -> 0 | S13: =SUM(P11:P13) -> 0 | V13: =SUM(P11:P13) -> 0
B14: 区分 | C14: 契約番号 証券記号番号 | D14: 保険会社等 の名称 | E14: 保険等 の種類（目的） | F14: 保険期間 | G14: 保険等の 契約者の氏名 | H14: 保険等の対象となった | J14: 地震保険料又は 旧長期損害保険料の区分 | K14: あなたが本年中に支払った保険料等のうち、左欄の区分に係る金額（分配を受けた剰余金等の控除後の金額） Ⓐ
H15: 家屋等に居住又は家財を利用している者等の氏名 | I15: あなたとの 続柄
J19: =IF(B19="","",B19) -> 
B21: 社会保険の種類 | D21: 保険料支払先の名称 | G21: 保険料を 負担することに なっている人 | H21: 氏名 | I21: あなたとの 続柄 | K21: あなたが本年中に支払った保険料の金額

Sheet hikaku
B2: 960000
C3: 専従者 | F3: 事業主
B4: 給与の額 | C4: 所得金額 | D4: 所得税 | E4: 住民税 | F4: 所得金額 | G4: 所得税 | H4: 住民税 | I4: 税額合計
C5: =senjusha!G3 -> 310000 | D5: =senjusha!G10 -> 0 | E5: =senjusha!G32 -> 0 | F5: =jigyosha!G3 -> 0 | G5: =jigyosha!G10 -> 0 | H5: =jigyosha!G32 -> 0 | I5: =D5+E5+G5+H5 -> 0
A6: 80000 | B6: =A6*12 -> 960000 | C6: 310000 | D6: 0 | E6: 0 | F6: 0 | G6: 0 | H6: 0 | I6: 0
A7: =A6+10000 -> 90000 | B7: =A7*12 -> 1080000 | C7: 430000 | D7: 2552 | E7: 12500 | F7: 0 | G7: 0 | H7: 0 | I7: 15052
A8: =A7+10000 -> 100000 | B8: =A8*12 -> 1200000 | C8: 550000 | D8: 8678 | E8: 24100 | F8: 0 | G8: 0 | H8: 0 | I8: 32778
A9: 110000 | B9: 1320000 | C9: 670000 | D9: 14804 | E9: 35700 | F9: 0 | G9: 0 | H9: 0 | I9: 50504
A10: 120000 | B10: 1440000 | C10: 790000 | D10: 20930 | E10: 47400 | F10: 0 | G10: 0 | H10: 0 | I10: 68330
A11: 130000 | B11: 1560000 | C11: 910000 | D11: 27056 | E11: 59000 | F11: 0 | G11: 0 | H11: 0 | I11: 86056
A12: 140000 | B12: 1680000 | C12: 1008000 | D12: 32059 | E12: 68500 | F12: 0 | G12: 0 | H12: 0 | I12: 100559
A13: 150000 | B13: 1800000 | C13: 1080000 | D13: 35735 | E13: 75500 | F13: 0 | G13: 0 | H13: 0 | I13: 111235
A14: 160000 | B14: 1920000 | C14: 1164000 | D14: 40023 | E14: 83600 | F14: 0 | G14: 0 | H14: 0 | I14: 123623
A15: 170000 | B15: 2040000 | C15: 1248000 | D15: 44311 | E15: 91700 | F15: 0 | G15: 0 | H15: 0 | I15: 136011
A16: 180000 | B16: 2160000 | C16: 1332000 | D16: 48599 | E16: 99900 | F16: 0 | G16: 0 | H16: 0 | I16: 148499
A17: 190000 | B17: 2280000 | C17: 1416000 | D17: 52887 | E17: 108100 | F17: 0 | G17: 0 | H17: 0 | I17: 160987
A18: 200000 | B18: 2400000 | C18: 1500000 | D18: 57176 | E18: 116200 | F18: 0 | G18: 0 | H18: 0 | I18: 173376
A19: 210000 | B19: 2520000 | C19: 1584000 | D19: 61464 | E19: 124300 | F19: 0 | G19: 0 | H19: 0 | I19: 185764

Sheet kubun
B4: 新
B5: 旧
B7: 新
B8: 旧
